bitfinex/quotes_ETHUSD_20241120
["timestamp","ask_amount","ask_price","bid_price","bid_amount"]
[1732129669686,0.04187653,3041.1,3041.0,0.55]
[1732129669891,3.28795,3041.4,3041.0,0.55]
[1732129670090,0.04193809,3041.3,3041.0,0.55]
[1732129670720,0.04193809,3041.3,3040.9,0.7685]
[1732129670937,3.28857,3040.9,3040.5,0.7636]
[1732129671422,3.33050311,3040.8,3040.5,0.7636]
[1732129671635,3.33050311,3040.8,3040.2,3.69595]
[1732129671636,3.28878,3040.7,3040.2,3.69595]
[1732129671837,3.28878,3040.7,3040.3,0.593235]
[1732129672129,0.04174154,3040.6,3040.3,0.593235]
[1732129672420,0.04174154,3040.6,3040.2,3.69594]
[1732129672421,0.04174154,3040.6,3040.2,0.7636]
[1732129672722,3.28906,3040.4,3039.9,0.03289032]
[1732129672921,3.28906,3040.4,3040.0,0.26645803]
[1732129673126,3.28906,3040.4,3039.9,2.66450032]
[1732129673127,0.04164225,3040.3,3039.9,2.66450032]
[1732129673429,3.33081225,3040.3,3039.8,2.63174]
[1732129673634,3.33081225,3040.3,3039.9,0.34282325]
[1732129673919,3.33079225,3040.3,3040.0,0.55]
[1732129675124,3.33079225,3040.3,3039.8,2.63169]
[1732129675125,3.28928,3040.2,3039.8,0.55]
[1732129675426,3.28979,3039.7,3039.6,0.141628]
[1732129675638,3.2896,3039.9,3039.6,0.141628]
[1732129675785,3.33122895,3039.7,3039.6,0.141628]
[1732129675989,3.28979,3039.7,3039.6,0.141628]
[1732129676190,3.33122895,3039.7,3039.6,0.141628]
[1732129677125,3.99332085,3039.7,3039.6,0.141628]
[1732129678832,3.99332085,3039.7,3039.6,0.691628]
[1732129678833,0.04143895,3039.7,3039.6,0.691628]
[1732129678987,0.04143895,3039.7,3039.6,3.323548]
[1732129679189,3.28937,3040.1,3039.7,0.55]
[1732129679485,3.28866,3040.8,3040.3,0.55]
[1732129679719,3.28873,3040.7,3040.3,0.55]
[1732129679881,0.8322,3040.9,3040.3,0.55]
[1732129679882,4.1207,3040.9,3040.3,0.55]
[1732129680088,3.28866,3040.8,3040.3,0.55]
[1732129680392,3.2884,3041.0,3040.5,0.55]
[1732129680620,3.28882,3040.6,3040.2,0.8305]
[1732129680791,3.28801,3041.4,3040.3,0.55]
[1732129681134,0.8322,3041.6,3040.8,0.55]
[1732129681298,3.28823,3041.2,3040.8,0.55]
[1732129681506,1.28854385,3041.6,3040.8,0.55]
[1732129681507,3.288,3041.4,3040.8,0.55]
[1732129681831,3.28817,3041.3,3040.8,0.55]
[1732129682041,6.57632,3041.3,3040.8,0.55]
[1732129682190,1.28854385,3041.6,3040.8,0.55]
[1732129682191,3.2883,3041.1,3040.8,0.55]
[1732129682384,3.2885,3040.9,3040.6,0.55]
[1732129682584,3.2885,3040.9,3040.2,0.8305]
[1732129682585,3.28872,3040.7,3040.2,0.8305]
[1732129682888,3.28879,3040.7,3040.2,0.8305]
[1732129683096,3.28894,3040.5,3040.2,0.8305]
[1732129683544,3.28943,3040.1,3039.6,0.141628]
[1732129683752,3.28964,3039.9,3039.6,0.141628]
[1732129684044,3.28969,3039.8,3039.6,0.141628]
[1732129684202,3.28979,3039.7,3039.6,0.141628]
[1732129685732,3.947733,3039.7,3039.6,0.141628]
[1732129686034,4.747133,3039.7,3039.6,0.141628]
[1732129689255,3.28969,3039.8,3039.6,0.141628]
[1732129689451,3.28979,3039.7,3039.6,0.141628]
[1732129690865,4.10339,3039.7,3039.6,0.141628]
[1732129691166,7.10339,3039.7,3039.6,8e-06]
[1732129691338,8.51782185,3039.7,3039.6,8e-06]
[1732129692532,8.52782185,3039.7,3039.6,8e-06]
[1732129693142,3.29109,3038.5,3037.4,0.7613]
[1732129693349,3.29109,3038.5,3037.4,3.39512]
[1732129693350,3.2916,3038.1,3037.4,3.39512]
[1732129693559,3.29165,3038.0,3037.4,3.39512]
[1732129694080,3.29135,3038.3,3037.6,2.63357]
[1732129694384,3.29092,3038.7,3038.1,0.7613]
[1732129694519,0.04076209,3038.2,3038.1,0.7613]
[1732129694728,3.291,3038.6,3038.1,0.7613]
[1732129694926,0.04085459,3038.5,3038.1,0.7613]
[1732129695260,3.2913,3038.4,3038.1,1.100754]
[1732129695465,0.04082376,3038.4,3038.1,0.7613]
[1732129695827,3.29134,3038.3,3038.1,0.7613]
[1732129696141,3.29134,3038.3,3037.7,2.63354]
[1732129696142,0.04079292,3038.3,3037.8,2.63345]
[1732129696345,0.04079292,3038.3,3037.9,0.339475]
[1732129696662,3.29101,3038.6,3037.9,0.339475]
[1732129696972,3.29089,3038.7,3038.1,2.63322]
[1732129697157,0.04085874,3038.5,3038.4,2.63296]
[1732129697324,0.04088958,3038.6,3038.4,1.3415]
[1732129697523,3.29073,3038.9,3038.4,0.7915]
[1732129697729,3.2906,3039.0,3038.4,0.7915]
[1732129697730,3.33170503,3038.8,3038.4,0.7915]
[1732129697962,6.62256503,3038.8,3038.4,0.7915]
[1732129698159,0.04093503,3038.8,3038.4,0.7915]
[1732129698364,0.04093503,3038.8,3038.2,0.55]
[1732129698529,0.04093503,3038.8,3038.2,3.18311]
[1732129698530,3.29084,3038.8,3038.2,3.18311]
[1732129698731,0.04091485,3038.7,3038.2,3.18311]
[1732129699132,0.04091485,3038.7,3038.2,0.55]
[1732129699379,3.29046,3039.1,3038.5,2.63283]
[1732129699698,3.7632,3039.4,3038.3,2.63305]
[1732129699699,0.04089792,3038.6,3038.3,2.63305]
[1732129699828,3.29055,3039.0,3038.3,2.63305]
[1732129700029,0.04087032,3038.5,3038.4,2.63296]
[1732129700260,3.73123854,3039.1,3038.2,0.55]
[1732129700424,0.04087032,3038.5,3038.2,3.18305]
[1732129700646,3.2909,3038.7,3038.2,3.18305]
[1732129700840,0.04084227,3038.4,3038.3,0.947805]
[1732129701053,3.29099,3038.6,3038.2,0.55]
[1732129701279,0.04084227,3038.4,3038.2,0.55]
[1732129701573,0.04081143,3038.3,3038.1,0.795]
[1732129701832,0.04081143,3038.3,3038.1,3.42821]
[1732129701986,3.29083,3038.8,3038.2,3.239222]
[1732129702139,3.29042,3039.2,3038.5,2.6328]
[1732129702340,3.29042,3039.2,3038.2,0.55]
[1732129702341,3.29023,3039.3,3038.6,2.89601]
[1732129702568,3.29023,3039.3,3038.2,3.18305]
[1732129702771,3.29023,3039.3,3038.1,0.795]
[1732129702772,3.29081,3038.8,3038.1,0.795]
[1732129703043,3.29095,3038.7,3038.1,0.795]
[1732129703252,3.29095,3038.7,3038.2,2.6331]
[1732129703452,3.29095,3038.7,3038.1,0.795]
[1732129703453,3.29055,3039.0,3038.1,0.795]
[1732129703649,3.29114,3038.5,3038.1,0.795]
[1732129703941,3.29099,3038.6,3038.1,3.42821]
[1732129704169,3.2911,3038.5,3038.1,0.795]
[1732129704371,3.29112,3038.5,3038.1,0.795]
[1732129704853,3.29072,3038.9,3038.1,0.795]
[1732129705180,3.29072,3038.9,3038.2,2.63305]
[1732129705683,3.29083,3038.8,3038.1,0.795]
[1732129705888,3.29083,3038.8,3038.2,0.55]
[1732129706591,3.29101,3038.6,3038.1,0.795]
[1732129706752,3.949035,3038.7,3038.1,3.42822]
[1732129706950,3.949035,3038.7,3038.1,0.795]
[1732129706951,3.29088,3038.7,3038.1,0.795]
[1732129707290,3.29104,3038.6,3037.9,3.43773]
[1732129707467,3.29132,3038.3,3037.9,0.8044]
[1732129707647,3.29117,3038.5,3037.9,0.8044]
[1732129707851,3.29126,3038.4,3037.9,0.8044]
[1732129708046,3.29117,3038.5,3037.8,2.63347]
[1732129708276,3.29123,3038.4,3037.8,2.63347]
[1732129708460,3.29137,3038.3,3037.6,3.43804]
[1732129708675,3.99834627,3038.4,3037.7,0.55]
[1732129708851,3.29137,3038.3,3037.7,0.55]
[1732129709056,3.29137,3038.3,3037.7,2.63356]
[1732129709375,0.70711627,3038.4,3038.0,2.63325]
[1732129709583,0.04073523,3038.2,3038.0,2.63325]
[1732129709778,3.29121,3038.4,3037.6,0.83731644]
[1732129710098,3.99831127,3038.4,3037.6,3.43803]
[1732129710273,3.29142,3038.2,3037.7,2.63356]
[1732129710465,0.04070439,3038.1,3037.7,2.63356]
[1732129711496,3.99831127,3038.4,3037.7,2.63356]
[1732129711497,3.29144,3038.2,3037.7,2.63356]
[1732129711663,3.29154,3038.1,3037.6,3.43804]
[1732129711991,0.04070625,3038.1,3037.6,3.438]
[1732129712499,3.29148,3038.2,3037.7,2.63349]
[1732129712693,0.04070115,3038.1,3037.7,2.63357]
[1732129712871,3.29143,3038.2,3037.7,2.63356]
[1732129713051,0.04070115,3038.1,3037.7,2.63356]
[1732129713378,0.04070115,3038.1,3038.0,2.63331]
[1732129713769,6.58145,3038.9,3038.2,2.63307]
[1732129713972,4.32195885,3038.9,3038.3,3.45894]
[1732129714171,3.29094,3038.7,3038.3,0.8259]
[1732129714896,3.29085,3038.8,3038.3,0.8259]
[1732129715065,3.2912,3038.4,3038.3,0.8259]
[1732129715269,3.2912,3038.4,3037.9,2.63335]
[1732129715476,3.2912,3038.4,3037.8,4.00932]
[1732129715800,3.29149,3038.2,3037.6,2.63365]
[1732129716000,3.29148,3038.2,3037.7,2.63351]
[1732129716354,4.770188,3038.4,3037.8,2.63343]
[1732129716705,3.29134,3038.3,3037.8,2.63343]
[1732129716853,3.29151,3038.2,3037.6,5.26719]
[1732129717060,3.6862788,3038.3,3037.6,2.63359]
[1732129717355,3.29133,3038.3,3037.6,2.63359]
[1732129717570,4.55193854,3038.7,3037.5,0.8259]
[1732129717571,3.29166,3038.0,3037.5,0.8259]
[1732129717771,3.29149,3038.2,3037.5,0.8259]
[1732129718002,3.29162,3038.1,3037.5,3.4596]
[1732129718501,3.949931,3038.1,3037.6,2.63361]
[1732129718658,3.29162,3038.1,3037.6,2.63364]
[1732129719496,3.2916,3038.1,3037.5,0.8259]
[1732129719674,3.2916,3038.1,3037.6,2.63363]
[1732129719869,0.82749504,3038.6,3037.6,2.63363]
[1732129720193,3.29144,3038.2,3037.6,2.63363]
[1732129720395,0.86703236,3038.5,3037.8,2.63341]
[1732129720610,3.29142,3038.2,3037.6,3.18359]
[1732129720815,3.29142,3038.2,3037.7,2.63354]
[1732129721306,3.0,3038.6,3037.6,0.55]
[1732129721506,3.29156,3038.1,3037.6,3.18364]
[1732129721692,3.29135,3038.3,3037.6,3.18364]
[1732129722011,3.29135,3038.3,3037.8,2.63348]
[1732129722170,3.29142,3038.2,3037.6,3.18359]
[1732129722363,1.08430985,3038.5,3037.6,0.55]
[1732129722564,3.29224,3037.5,3037.2,0.7569]
[1732129722765,3.29208,3037.6,3037.0,2.63412]
[1732129723078,3.29231,3037.4,3036.9,1.020321]
[1732129723264,4.16660832,3037.9,3036.9,0.7569]
[1732129723467,4.16660832,3037.9,3037.3,2.63384]
[1732129723468,3.29176,3037.9,3037.3,2.63384]
[1732129723762,3.29173,3038.0,3037.5,2.63373]
[1732129723969,0.8148,3038.2,3037.5,2.63368]
[1732129724164,0.8148,3038.2,3036.6,2.64448]
[1732129724165,3.73123854,3037.9,3036.7,0.03292102]
[1732129724477,0.753,3037.4,3036.8,2.63429]
[1732129724683,0.04043542,3037.3,3036.8,2.63429]
[1732129724877,0.04043542,3037.3,3036.9,2.63425]
[1732129725079,0.8063,3037.8,3036.9,2.63425]
[1732129725282,0.04055142,3037.7,3037.0,2.63417]
[1732129725624,0.04055142,3037.7,3037.1,3.96508]
[1732129725914,0.04055142,3037.7,3037.6,2.63365]
[1732129726121,4.09703,3038.9,3037.6,1.331]
[1732129726273,3.29118,3038.5,3037.8,2.63346]
[1732129726468,0.03514941,3038.4,3037.8,2.63346]
[1732129726681,3.32634941,3038.4,3037.8,2.63346]
[1732129726973,0.03514941,3038.4,3037.7,0.55]
[1732129727200,0.03514941,3038.4,3037.9,2.63338]
[1732129727407,0.03514941,3038.4,3038.2,2.63307]
[1732129727585,0.03514941,3038.4,3038.3,3.38825]
[1732129727770,3.29051,3039.1,3038.3,4.045382]
[1732129728106,3.29062,3039.0,3038.3,4.595382]
[1732129728316,3.29062,3039.0,3038.4,0.55]
[1732129728317,3.29084,3038.8,3038.4,0.55]
[1732129728525,3.29062,3039.0,3038.4,0.55]
[1732129728526,0.0352419,3038.7,3038.4,0.55]
[1732129728838,3.29061,3039.0,3038.4,0.55]
[1732129729013,0.03521107,3038.6,3038.5,2.63286]
[1732129729185,0.73073211,3039.4,3038.6,0.55]
[1732129729386,0.03521107,3038.6,3038.3,0.7552]
[1732129729588,3.2909,3038.7,3038.3,0.7552]
[1732129730125,0.03521107,3038.6,3038.3,0.7552]
[1732129730699,0.03521107,3038.6,3038.0,3.0]
[1732129730700,3.29109,3038.5,3038.0,3.0]
[1732129730901,0.03514941,3038.4,3038.1,3.0]
[1732129731197,0.03514941,3038.4,3038.3,2.63305]
[1732129731401,0.03514941,3038.4,3038.3,3.159669]
[1732129731600,6.58132,3038.9,3037.9,0.7552]
[1732129732001,3.29172,3038.0,3037.6,0.7535]
[1732129732163,3.2917,3038.0,3037.6,0.7535]
[1732129732341,0.03505031,3037.9,3037.6,0.7535]
[1732129732655,3.29189,3037.8,3037.6,0.7535]
[1732129732805,0.03505031,3037.9,3037.6,0.7535]
[1732129732806,0.03505031,3037.9,3037.6,3.3871]
[1732129733012,0.03498862,3037.7,3037.6,3.989189]
[1732129733220,3.29159,3038.1,3037.6,3.989189]
[1732129733427,3.29143,3038.2,3037.7,2.63356]
[1732129733736,0.035112,3038.1,3037.6,3.989239]
[1732129734045,0.035112,3038.1,3037.6,0.7535]
[1732129734046,3.2917,3038.0,3037.6,0.7535]
[1732129734260,0.035112,3038.1,3037.6,3.38715]
[1732129734577,0.03508115,3038.0,3037.9,2.63339]
[1732129734719,4.05265,3038.8,3038.1,2.6332]
[1732129734926,0.035297,3038.7,3038.3,3.446]
[1732129735123,3.29049,3039.1,3038.5,2.6328]
[1732129735446,3.32594428,3039.0,3038.5,2.6328]
[1732129735648,3.32594428,3039.0,3038.7,2.63266]
[1732129735649,0.03536428,3039.0,3038.7,2.63266]
[1732129735819,0.03536428,3039.0,3038.1,2.6332]
[1732129735820,3.29066,3038.9,3038.1,2.6332]
[1732129736021,3.29066,3038.9,3038.3,2.63299]
[1732129736328,0.0353143,3038.8,3038.3,2.63299]
[1732129736534,4.04047,3039.5,3038.7,2.63264]
[1732129736864,3.32561922,3039.4,3038.8,2.895804]
[1732129737077,3.32561922,3039.4,3039.0,2.63243]
[1732129737078,0.03549922,3039.4,3039.0,2.63243]
[1732129737368,0.03549922,3039.4,3038.5,2.63284]
[1732129737530,3.28999,3039.6,3039.1,2.63234]
[1732129737735,0.8179,3039.8,3039.1,2.63234]
[1732129737736,0.03553003,3039.5,3039.1,2.63234]
[1732129737942,0.8179,3039.8,3039.1,2.63234]
[1732129738258,3.28993,3039.6,3039.1,2.63229]
[1732129738461,3.32549165,3039.7,3039.1,2.63231]
[1732129738669,0.03553003,3039.5,3039.1,2.63229]
[1732129738972,0.03549922,3039.4,3039.1,2.63229]
[1732129739121,6.57974,3039.7,3039.1,2.63229]
[1732129739323,0.03556084,3039.6,3039.0,0.55]
[1732129739640,3.32548084,3039.6,3039.1,2.63234]
[1732129739837,3.32548084,3039.6,3039.0,3.18237]
[1732129740038,3.29002,3039.5,3039.0,0.55]
[1732129740258,0.44989892,3039.6,3039.0,2.63238]
[1732129740565,0.03553003,3039.5,3038.9,0.55]
[1732129740764,3.29007,3039.5,3038.8,2.63255]
[1732129740967,3.2903,3039.3,3038.7,0.7834]
[1732129741124,3.2903,3039.3,3038.7,3.41609]
[1732129741125,0.03543759,3039.2,3038.7,3.41609]
[1732129741476,0.03543759,3039.2,3039.1,2.63235]
[1732129741763,0.8179,3039.8,3038.9,0.55]
[1732129741991,0.8179,3039.8,3037.3,1.34630974]
[1732129741992,3.29044,3039.1,3038.0,3.4066]
[1732129742262,3.29111,3038.5,3038.0,3.4066]
[1732129742428,6.58191,3038.7,3038.2,2.63313]
[1732129742625,0.03523067,3038.4,3038.0,3.4066]
[1732129742952,0.03524606,3038.3,3038.2,2.63313]
[1732129743155,4.11373,3038.8,3038.2,2.63313]
[1732129743378,0.03417973,3038.7,3038.3,2.63299]
[1732129743542,0.8229,3038.8,3038.2,3.271161]
[1732129743739,0.03417973,3038.7,3038.4,2.63295]
[1732129744077,7.02162854,3039.2,3038.2,3.271081]
[1732129744078,3.29056,3039.0,3038.2,3.271081]
[1732129744370,3.29069,3038.9,3038.4,2.6329]
[1732129744580,0.03419282,3038.8,3038.4,2.6329]
[1732129744927,4.55413854,3039.2,3038.3,0.3271111]
[1732129745156,3.29096,3038.7,3038.2,2.63306]
[1732129745362,3.29066,3039.0,3038.0,0.7733]
[1732129745363,3.29121,3038.4,3038.0,0.7733]
[1732129745566,3.32534933,3038.3,3038.0,0.7733]
[1732129745877,3.32534933,3038.3,3037.8,5.63347]
[1732129746082,0.03402933,3038.3,3037.9,3.537026]
[1732129746239,3.2911,3038.5,3038.0,2.6333]
[1732129746425,3.29094,3038.7,3038.1,2.63315]
[1732129746426,0.03400689,3038.2,3038.1,2.63315]
[1732129746625,0.03400689,3038.2,3038.0,2.6333]
[1732129746626,3.29094,3038.7,3038.2,2.63312]
[1732129746827,3.29072,3038.9,3038.3,2.63302]
[1732129747055,0.03412323,3038.6,3038.3,2.63302]
[1732129747243,3.29072,3038.9,3038.3,2.63302]
[1732129747443,0.0340854,3038.5,3038.4,2.63296]
[1732129747681,3.29051,3039.1,3038.5,2.63285]
[1732129747977,3.29067,3038.9,3038.4,2.63296]
[1732129748287,3.32497788,3038.8,3038.2,2.6331]
[1732129748435,3.29089,3038.7,3038.2,2.6331]
[1732129748635,0.03417788,3038.8,3038.3,2.63304]
[1732129748978,0.03414706,3038.7,3038.3,2.63304]
[1732129749181,6.5814,3038.9,3038.3,2.63304]
[1732129749338,0.03417788,3038.8,3037.8,0.55]
[1732129749533,3.29108,3038.6,3038.0,3.1833]
[1732129749768,0.0340994,3038.5,3038.0,2.63325]
[1732129750262,0.0340994,3038.5,3038.3,2.63304]
[1732129750439,0.0340994,3038.5,3038.4,2.63296]
[1732129750639,3.29046,3039.1,3038.5,2.63282]
[1732129750991,3.29029,3039.3,3038.8,2.63257]
[1732129751130,6.29007,3039.5,3038.8,2.63257]
[1732129751333,3.0,3039.5,3038.7,0.7514]
[1732129751538,3.2906,3039.0,3038.5,2.63281]
[1732129751766,3.2906,3039.0,3037.9,2.63336]
[1732129751767,3.29039,3039.2,3038.7,2.63266]
[1732129752250,3.29028,3039.3,3038.7,5.2653]
[1732129752536,3.958041,3039.3,3038.8,0.8171]
[1732129752876,3.2904,3039.2,3038.8,0.8171]
[1732129753043,3.0,3039.3,3038.8,0.8171]
[1732129753576,3.29034,3039.2,3038.8,0.8171]
[1732129754610,0.03430443,3039.1,3038.8,0.8171]
[1732129755585,0.03430443,3039.1,3038.8,3.4497]
[1732129755794,3.0,3039.5,3038.5,3.44992]
[1732129756090,0.03427361,3039.0,3038.6,2.63278]
[1732129756234,3.29054,3039.1,3038.6,2.63278]
[1732129756576,3.32484108,3039.0,3038.5,0.8171]
[1732129756784,3.32484108,3039.0,3038.5,3.44997]
[1732129757435,3.32484108,3039.0,3038.5,0.8171]
[1732129757676,3.32484108,3039.0,3038.3,2.63296]
[1732129757677,3.29084,3038.8,3038.3,2.63296]
[1732129757986,0.0341886,3038.7,3038.4,2.63292]
[1732129758140,3.29057,3039.0,3038.4,2.63292]
[1732129758334,0.03424839,3038.9,3038.4,3.236088]
[1732129758754,0.03424839,3038.9,3038.5,2.63283]
[1732129758980,3.29035,3039.2,3038.7,2.63265]
[1732129759178,0.03429556,3039.1,3038.8,2.6326]
[1732129759349,0.03429556,3039.1,3038.6,2.63275]
[1732129759350,3.0,3039.3,3038.6,2.63275]
[1732129759549,0.03432638,3039.2,3038.8,2.63257]
[1732129759751,0.03432638,3039.2,3038.8,0.807]
[1732129760093,0.811,3040.4,3039.6,0.807]
[1732129760284,3.03759201,3041.1,3040.2,2.63139]
[1732129760285,4.0998,3040.7,3040.2,2.63139]
[1732129760487,4.838636,3040.7,3040.1,2.63145]
[1732129760783,3.2882,3041.2,3040.5,0.807]
[1732129760784,0.811,3041.2,3040.5,0.807]
[1732129760997,4.09917,3041.2,3040.5,3.43808]
[1732129761139,0.409916,3041.1,3040.5,0.807]
[1732129761346,0.811,3040.9,3039.8,0.807]
[1732129761654,3.28919,3040.3,3039.8,0.807]
[1732129761860,3.28907,3040.4,3039.8,3.43874]
[1732129762253,3.28886,3040.6,3040.0,2.63156]
[1732129762567,0.328886,3040.6,3039.8,0.807]
[1732129762895,3.28908,3040.4,3039.8,0.807]
[1732129763254,0.8318,3040.3,3039.5,0.8156]
[1732129763454,3.28958,3039.9,3039.5,0.8156]
[1732129763695,3.28954,3040.0,3039.5,0.8156]
[1732129763865,3.2896,3039.9,3039.5,0.8156]
[1732129764502,3.28939,3040.1,3039.6,2.63189]
[1732129764705,3.28919,3040.3,3039.6,0.344749]
[1732129764891,3.0,3040.8,3039.6,0.344749]
[1732129764892,3.28895,3040.5,3039.6,0.344749]
[1732129765208,3.28915,3040.3,3039.6,0.344749]
[1732129765612,3.28937,3040.1,3039.6,2.976659]
[1732129765765,3.28926,3040.2,3039.6,2.976659]
[1732129765968,3.28915,3040.3,3039.7,2.63183]
[1732129766267,3.28904,3040.4,3039.6,0.344749]
[1732129766481,3.28915,3040.3,3039.7,2.63177]
[1732129766813,3.28912,3040.4,3039.8,0.263177]
[1732129767024,3.28912,3040.4,3039.8,2.894897]
[1732129767182,0.8318,3040.7,3039.5,3.44752]
[1732129767183,3.28932,3040.2,3039.5,3.44752]
[1732129767393,3.28936,3040.1,3039.5,4.355485]
[1732129767588,3.28949,3040.0,3039.5,1.723565]
[1732129767788,3.28949,3040.0,3038.6,0.01]
[1732129767789,3.2898,3039.7,3039.1,2.63234]
[1732129768874,3.28962,3039.9,3039.3,3.39692]
[1732129769309,3.28982,3039.7,3039.3,0.7648]
[1732129769727,0.03232088,3039.6,3039.5,0.7741]
[1732129770128,3.28942,3040.1,3039.5,0.7741]
[1732129770291,0.03227982,3039.6,3039.5,0.7741]
[1732129770503,0.03228029,3039.6,3039.2,2.63223]
[1732129770805,3.28961,3039.9,3039.3,2.63217]
[1732129771005,0.03225554,3039.5,3039.3,2.63217]
[1732129771245,3.28961,3039.9,3039.3,2.63217]
[1732129771740,0.03234797,3039.8,3039.3,2.63217]
[1732129772291,0.03234797,3039.8,3039.2,2.63219]
[1732129772487,3.28975,3039.8,3039.2,2.972834]
[1732129772721,3.28975,3039.8,3039.2,0.340644]
[1732129772931,0.03231297,3039.7,3039.5,2.63198]
[1732129773093,0.03231297,3039.7,3039.3,2.63217]
[1732129773296,3.28934,3040.2,3039.4,2.63207]
[1732129773496,1.7994554,3040.4,3039.3,2.63217]
[1732129773497,0.03228216,3039.6,3039.3,2.63217]
[1732129773696,3.28953,3040.0,3039.5,2.632]
[1732129774132,3.2893,3040.2,3039.5,2.63193]
[1732129774333,3.28946,3040.1,3039.6,2.63191]
[1732129774631,3.28928,3040.2,3039.6,2.63191]
[1732129775139,6.57861,3040.2,3039.6,2.63191]
[1732129775290,3.28934,3040.2,3039.4,2.63204]
[1732129775493,0.7504,3040.4,3039.4,5.79051]
[1732129775494,3.28958,3039.9,3039.4,5.79051]
[1732129775730,3.28958,3039.9,3039.4,2.63204]
[1732129776607,3.28936,3040.1,3039.5,2.632]
[1732129776821,3.28947,3040.0,3039.5,2.632]
[1732129777121,3.28942,3040.1,3039.5,2.632]
[1732129777562,3.28947,3040.0,3039.5,2.632]
[1732129778073,3.28942,3040.1,3039.3,2.972741]
[1732129778282,3.28985,3039.7,3039.1,3.40644]
[1732129778593,3.29012,3039.4,3039.1,0.7741]
[1732129779095,3.28995,3039.6,3039.1,0.7741]
[1732129779306,3.29002,3039.5,3039.1,0.7741]
[1732129779864,0.8108,3039.8,3038.8,0.8317]
[1732129779865,3.29029,3039.3,3038.8,0.8317]
[1732129780066,3.29042,3039.2,3038.8,1.13241513]
[1732129780271,3.29052,3039.1,3038.8,0.8317]
[1732129780697,3.29058,3039.0,3038.8,0.8317]
[1732129780878,3.29058,3039.0,3038.5,0.8317]
[1732129781091,3.29058,3039.0,3038.1,3.46489]
[1732129781092,3.29099,3038.6,3038.1,3.46489]
[1732129781405,0.8108,3038.9,3037.3,0.01]
[1732129781406,3.2914,3038.3,3037.6,3.41134]
[1732129781626,3.291,3038.6,3037.6,0.7777]
[1732129781783,3.29106,3038.6,3037.6,0.7777]
[1732129782116,3.29115,3038.5,3037.9,2.63334]
[1732129782813,0.8108,3038.9,3037.9,2.63334]
[1732129783020,6.58212,3038.6,3038.1,2.63322]
[1732129783187,3.29109,3038.5,3038.0,0.263334]
[1732129783365,3.29105,3038.6,3038.1,2.63319]
[1732129783566,3.29105,3038.6,3038.1,2.9228564]
[1732129784076,3.2911,3038.5,3038.1,0.2896664]
[1732129784280,3.29082,3038.8,3038.1,2.9228464]
[1732129784495,3.29082,3038.8,3038.2,2.63307]
[1732129784730,0.03192781,3038.7,3038.1,0.8219]
[1732129784867,3.29138,3038.3,3037.8,0.8219]
[1732129785218,3.32325784,3038.2,3037.8,0.8219]
[1732129785366,3.32325784,3038.2,3036.9,0.01]
[1732129785367,3.29175,3037.9,3037.4,0.8219]
[1732129785566,0.031654,3037.8,3037.4,0.8219]
[1732129786266,3.29203,3037.7,3037.4,0.8219]
[1732129786514,3.29203,3037.7,3037.0,3.45547]
[1732129786515,3.2922,3037.5,3037.0,3.45547]
[1732129786805,3.06966121,3037.4,3036.6,0.8213]
[1732129786977,3.29259,3037.2,3036.6,0.8213]
[1732129787176,3.32407097,3037.1,3036.7,0.3597478]
[1732129787379,3.29274,3037.0,3036.6,0.8213]
[1732129787696,0.03128524,3036.9,3036.6,0.8213]
[1732129787898,3.29311,3036.7,3036.5,0.141628]
[1732129788104,3.29293,3036.8,3036.5,0.141628]
[1732129788264,0.03119264,3036.6,3036.5,0.141628]
[1732129788474,3.29311,3036.7,3036.5,0.141628]
[1732129788677,0.03119264,3036.6,3036.5,0.141628]
[1732129789810,3.29315,3036.6,3036.5,0.141628]
[1732129790115,3.32434264,3036.6,3036.5,0.141628]
[1732129791730,0.03119264,3036.6,3036.5,0.141628]
[1732129792095,3.29293,3036.8,3036.5,0.141628]
[1732129792315,0.03115431,3036.6,3036.5,0.141628]
[1732129792521,3.29306,3036.7,3036.5,0.141628]
[1732129792830,3.32430431,3036.6,3036.5,0.141628]
[1732129794025,0.03115431,3036.6,3036.5,0.141628]
[1732129794231,3.29293,3036.8,3036.5,0.141628]
[1732129794398,0.03113891,3036.6,3036.5,0.141628]
[1732129794717,6.29289,3036.9,3036.5,0.141628]
[1732129794923,0.03113891,3036.6,3036.5,0.141628]
[1732129795128,3.29277,3037.0,3036.5,1.3192608]
[1732129795418,3.82720673,3037.4,3036.7,2.63441]
[1732129795419,4.0813,3037.4,3036.7,2.63441]
[1732129795719,3.29242,3037.3,3036.7,2.63441]
[1732129795884,3.29253,3037.2,3036.7,2.63441]
[1732129796308,0.789,3037.4,3036.7,2.63441]
[1732129796509,3.29248,3037.3,3036.7,2.63438]
[1732129796819,3.2925,3037.2,3036.7,2.63438]
[1732129797213,3.2925,3037.2,3036.6,4.03302608]
[1732129797823,3.29272,3037.0,3036.5,0.141628]
[1732129798032,3.0,3037.3,3036.5,0.141628]
[1732129798353,3.2925,3037.2,3036.6,2.63446]
[1732129798561,6.29246,3037.3,3036.5,3.6903708]
[1732129798562,6.29246,3037.3,3036.7,2.63443]
[1732129798867,3.29252,3037.2,3036.7,2.63443]
[1732129799029,3.0,3037.3,3036.7,2.63436]
[1732129799232,3.0,3037.3,3036.8,0.7795]
[1732129799233,6.29245,3037.3,3036.8,0.7795]
[1732129799609,0.03128765,3037.2,3036.8,0.7795]
[1732129799965,3.0,3037.3,3036.8,0.7795]
[1732129799966,6.5849,3037.3,3036.8,0.7795]
[1732129800247,0.03128952,3037.2,3036.8,0.7795]